[Event "Late-Titled-Tuesday-Blitz-May-28-2024"]
[Site "Chess.com"]
[Date "2024.05.28"]
[Round "6"]
[White "BabageldiAnnaberdiyev"]
[Black "KorolDimitriy75"]
[Result "0-1"]
[WhiteElo "2587"]
[BlackElo "2433"]
[TimeControl "180+1"]
[EndTime "15:06:51 PDT"]
[Termination "KorolDimitriy75 won by checkmate"]

1. e4 {[%clk 0:03:00.9]} 1... c5 {[%clk 0:03:00]} 2. Nf3 {[%clk 0:03:00.5]} 2...
d6 {[%clk 0:03:00.4]} 3. d4 {[%clk 0:03:00.3]} 3... cxd4 {[%clk 0:03:01.3]} 4.
Nxd4 {[%clk 0:03:00.5]} 4... Nf6 {[%clk 0:03:01.9]} 5. Nc3 {[%clk 0:03:00.8]}
5... g6 {[%clk 0:03:02.8]} 6. Be3 {[%clk 0:03:00.1]} 6... Bg7 {[%clk 0:03:03.3]}
7. f3 {[%clk 0:03:00.7]} 7... O-O {[%clk 0:03:03.9]} 8. Qd2 {[%clk 0:03:01.3]}
8... Nc6 {[%clk 0:03:04.5]} 9. Bc4 {[%clk 0:03:01.7]} 9... Bd7 {[%clk
0:03:04.6]} 10. O-O-O {[%clk 0:03:02.1]} 10... Qa5 {[%clk 0:03:05.2]} 11. Kb1
{[%clk 0:02:58.3]} 11... Rfc8 {[%clk 0:03:04.6]} 12. Bb3 {[%clk 0:02:57.8]}
12... Ne5 {[%clk 0:03:05.2]} 13. Nd5 {[%clk 0:02:20.9]} 13... Qxd2 {[%clk
0:03:04.7]} 14. Rxd2 {[%clk 0:02:21.8]} 14... Nxd5 {[%clk 0:03:03.8]} 15. Bxd5
{[%clk 0:02:17.2]} 15... Nc4 {[%clk 0:02:57.5]} 16. Bxc4 {[%clk 0:02:16.5]}
16... Rxc4 {[%clk 0:02:58.4]} 17. c3 {[%clk 0:02:16.5]} 17... b5 {[%clk
0:01:54.3]} 18. Nc2 {[%clk 0:02:11.2]} 18... a5 {[%clk 0:01:31.6]} 19. a4 {[%clk
0:02:10.4]} 19... b4 {[%clk 0:00:44.6]} 20. cxb4 {[%clk 0:02:00.3]} 20... axb4
{[%clk 0:00:45.5]} 21. Na1 {[%clk 0:01:55.5]} 21... Bxa4 {[%clk 0:00:20.6]} 22.
Rc1 {[%clk 0:01:38.4]} 22... Rxc1+ {[%clk 0:00:16.2]} 23. Kxc1 {[%clk
0:01:39.3]} 23... b3 {[%clk 0:00:12.1]} 24. Bd4 {[%clk 0:01:24.8]} 24... Bh6
{[%clk 0:00:11.5]} 25. Kd1 {[%clk 0:01:22.2]} 25... Bxd2 {[%clk 0:00:11.3]} 26.
Kxd2 {[%clk 0:01:23.1]} 26... f6 {[%clk 0:00:10.5]} 27. Bc3 {[%clk 0:01:23.2]}
27... Kf7 {[%clk 0:00:10]} 28. Ke3 {[%clk 0:01:23.1]} 28... e5 {[%clk 0:00:09]}
29. h4 {[%clk 0:01:21.1]} 29... Ke6 {[%clk 0:00:08.9]} 30. g4 {[%clk 0:01:21.6]}
30... d5 {[%clk 0:00:08.8]} 31. exd5+ {[%clk 0:01:22.5]} 31... Kxd5 {[%clk
0:00:09.5]} 32. g5 {[%clk 0:01:22]} 32... f5 {[%clk 0:00:09.3]} 33. f4 {[%clk
0:01:22.1]} 33... exf4+ {[%clk 0:00:07.4]} 34. Kxf4 {[%clk 0:01:23]} 34... Rc8
{[%clk 0:00:07]} 35. Nxb3 {[%clk 0:01:16.8]} 35... Bxb3 {[%clk 0:00:06.7]} 36.
Bf6 {[%clk 0:01:17.7]} 36... Bc2 {[%clk 0:00:06.5]} 37. Ke3 {[%clk 0:01:18.6]}
37... Be4 {[%clk 0:00:06.5]} 38. Kf4 {[%clk 0:01:18.2]} 38... Rc2 {[%clk
0:00:06.4]} 39. h5 {[%clk 0:01:19.1]} 39... gxh5 {[%clk 0:00:05.2]} 40. Kg3
{[%clk 0:01:19.4]} 40... Re2 {[%clk 0:00:03.3]} 41. Kh4 {[%clk 0:01:20.3]} 41...
Rh2+ {[%clk 0:00:02.4]} 42. Kg3 {[%clk 0:01:21.2]} 42... Rh1 {[%clk 0:00:03.1]}
43. g6 {[%clk 0:01:20.3]} 43... hxg6 {[%clk 0:00:03]} 44. Kf4 {[%clk 0:01:21.2]}
44... h4 {[%clk 0:00:02.7]} 45. Kg5 {[%clk 0:01:22.1]} 45... h3 {[%clk
0:00:02.8]} 46. Kf4 {[%clk 0:01:23]} 46... Rg1 {[%clk 0:00:01.6]} 47. Bd4 {[%clk
0:01:22]} 47... h2 {[%clk 0:00:01.4]} 48. Bxg1 {[%clk 0:01:22.9]} 48... hxg1=Q
{[%clk 0:00:02.2]} 49. b4 {[%clk 0:01:19.4]} 49... Qf1+ {[%clk 0:00:00.4]} 50.
Kg5 {[%clk 0:01:19.4]} 50... Qb5 {[%clk 0:00:01.2]} 51. Kf6 {[%clk 0:01:20.3]}
51... Qxb4 {[%clk 0:00:01.9]} 52. Kg5 {[%clk 0:01:21.2]} 52... Qd2+ {[%clk
0:00:02.8]} 53. Kf6 {[%clk 0:01:22.1]} 53... Qe2 {[%clk 0:00:03.3]} 54. Kg5
{[%clk 0:01:23]} 54... f4 {[%clk 0:00:03.7]} 55. Kf6 {[%clk 0:01:23.9]} 55... f3
{[%clk 0:00:03.8]} 56. Kg7 {[%clk 0:01:24.8]} 56... f2 {[%clk 0:00:04.7]} 57.
Kh6 {[%clk 0:01:25.7]} 57... f1=Q {[%clk 0:00:05.4]} 58. Kg7 {[%clk 0:01:25.6]}
58... Qf5 {[%clk 0:00:05.9]} 59. Kh7 {[%clk 0:01:26.5]} 59... g5+ {[%clk
0:00:06.5]} 60. Kg7 {[%clk 0:01:27.4]} 60... Qg6+ {[%clk 0:00:06.9]} 61. Kf8
{[%clk 0:01:26.8]} 61... Qf6+ {[%clk 0:00:06.9]} 62. Ke8 {[%clk 0:01:26.8]}
62... Qe5+ {[%clk 0:00:07.4]} 63. Kd8 {[%clk 0:01:27.7]} 63... Qd4 {[%clk
0:00:08.3]} 64. Kc7 {[%clk 0:01:28.4]} 64... Bb1 {[%clk 0:00:08.7]} 65. Kd7
{[%clk 0:01:29.3]} 65... Qec4 {[%clk 0:00:09]} 66. Ke7 {[%clk 0:01:30.2]} 66...
Ke4 {[%clk 0:00:09.8]} 67. Kf8 {[%clk 0:01:29.1]} 67... Qd6+ {[%clk 0:00:09.7]}
68. Kg7 {[%clk 0:01:30]} 68... Qcc7+ {[%clk 0:00:10.2]} 69. Kg8 {[%clk
0:01:28.9]} 69... Qdd8# {[%clk 0:00:11.1]} 0-1

[Event "Late-Titled-Tuesday-Blitz-May-28-2024"]
[Site "Chess.com"]
[Date "2024.05.28"]
[Round "6"]
[White "hansen"]
[Black "Aygehovit1992"]
[Result "1-0"]
[WhiteElo "3055"]
[BlackElo "2819"]
[TimeControl "180+1"]
[EndTime "15:06:54 PDT"]
[Termination "hansen won by resignation"]

1. e4 {[%clk 0:03:00.9]} 1... c5 {[%clk 0:02:56.5]} 2. Nf3 {[%clk 0:03:01.2]}
2... e6 {[%clk 0:02:57.2]} 3. d4 {[%clk 0:03:01.6]} 3... cxd4 {[%clk 0:02:58.1]}
4. Nxd4 {[%clk 0:03:02.5]} 4... Nc6 {[%clk 0:02:58.6]} 5. Nc3 {[%clk 0:03:02.4]}
5... Qc7 {[%clk 0:02:58.8]} 6. Be3 {[%clk 0:03:01.8]} 6... a6 {[%clk 0:02:58.9]}
7. Qd2 {[%clk 0:03:02.3]} 7... Nf6 {[%clk 0:02:57.5]} 8. O-O-O {[%clk 0:03:03]}
8... Be7 {[%clk 0:02:55.5]} 9. f3 {[%clk 0:03:01.8]} 9... b5 {[%clk 0:02:54.5]}
10. Kb1 {[%clk 0:02:56.2]} 10... Bb7 {[%clk 0:02:52.9]} 11. Qf2 {[%clk
0:02:45.2]} 11... Rc8 {[%clk 0:02:39.7]} 12. Nb3 {[%clk 0:02:40.1]} 12... Ne5
{[%clk 0:02:22.7]} 13. Bb6 {[%clk 0:02:35.3]} 13... Qb8 {[%clk 0:02:22.4]} 14.
Ba7 {[%clk 0:02:31]} 14... Qc7 {[%clk 0:02:08.9]} 15. Bb6 {[%clk 0:02:27.8]}
15... Qb8 {[%clk 0:02:09]} 16. Na5 {[%clk 0:01:55.4]} 16... O-O {[%clk
0:01:32.3]} 17. Nxb7 {[%clk 0:01:45.5]} 17... Qxb7 {[%clk 0:01:33.2]} 18. Bd4
{[%clk 0:01:46]} 18... Nc4 {[%clk 0:01:25]} 19. e5 {[%clk 0:01:39.4]} 19... Ne8
{[%clk 0:00:58.6]} 20. Bd3 {[%clk 0:01:34.8]} 20... f5 {[%clk 0:00:51.9]} 21.
exf6 {[%clk 0:01:25.2]} 21... Bxf6 {[%clk 0:00:48.4]} 22. Rhe1 {[%clk
0:01:17.3]} 22... Bxd4 {[%clk 0:00:41.4]} 23. Qxd4 {[%clk 0:01:17.2]} 23... Nf6
{[%clk 0:00:42.1]} 24. Ne4 {[%clk 0:01:08.5]} 24... d5 {[%clk 0:00:22.6]} 25.
Nxf6+ {[%clk 0:00:56.4]} 25... Rxf6 {[%clk 0:00:21.2]} 26. f4 {[%clk 0:00:56.7]}
26... Qb6 {[%clk 0:00:17.2]} 27. Qxb6 {[%clk 0:00:50.7]} 27... Nxb6 {[%clk
0:00:18.1]} 28. g3 {[%clk 0:00:51.2]} 28... Kf7 {[%clk 0:00:17.9]} 29. Re2
{[%clk 0:00:50.2]} 29... Nd7 {[%clk 0:00:17.2]} 30. c3 {[%clk 0:00:48.8]} 30...
Nc5 {[%clk 0:00:16.9]} 31. Bc2 {[%clk 0:00:49.4]} 31... h6 {[%clk 0:00:15.6]}
32. h4 {[%clk 0:00:49.2]} 32... a5 {[%clk 0:00:15.4]} 33. h5 {[%clk 0:00:49]}
33... Rb8 {[%clk 0:00:15.1]} 34. Bg6+ {[%clk 0:00:48.3]} 34... Ke7 {[%clk
0:00:15.2]} 35. Rxd5 {[%clk 0:00:47.6]} 35... Na4 {[%clk 0:00:11]} 36. Rde5
{[%clk 0:00:44]} 36... Kd6 {[%clk 0:00:04.1]} 37. Rd2+ {[%clk 0:00:40.9]} 37...
Ke7 {[%clk 0:00:03.8]} 38. Bc2 {[%clk 0:00:40.8]} 38... Nb6 {[%clk 0:00:02]} 39.
Rxb5 {[%clk 0:00:32.9]} 39... Rff8 {[%clk 0:00:01.7]} 40. Re2 {[%clk 0:00:30]}
40... Nc4 {[%clk 0:00:01.6]} 41. Rxb8 {[%clk 0:00:29.8]} 41... Rxb8 {[%clk
0:00:02.5]} 42. Bb3 {[%clk 0:00:30.4]} 42... Nd6 {[%clk 0:00:01.4]} 43. Rxe6+
{[%clk 0:00:30.3]} 43... Kd7 {[%clk 0:00:02]} 44. Rg6 {[%clk 0:00:30.5]} 44...
Nf5 {[%clk 0:00:02.1]} 45. Be6+ {[%clk 0:00:30.1]} 1-0

[Event "Late-Titled-Tuesday-Blitz-May-28-2024"]
[Site "Chess.com"]
[Date "2024.05.28"]
[Round "6"]
[White "NeverGiveUppp"]
[Black "vi_pranav"]
[Result "0-1"]
[WhiteElo "2598"]
[BlackElo "3033"]
[TimeControl "180+1"]
[EndTime "15:07:01 PDT"]
[Termination "vi_pranav won by resignation"]

1. e4 {[%clk 0:03:00.9]} 1... e5 {[%clk 0:03:00]} 2. Nf3 {[%clk 0:03:00.2]} 2...
Nc6 {[%clk 0:03:00.4]} 3. Nc3 {[%clk 0:03:00.3]} 3... Nf6 {[%clk 0:03:00.3]} 4.
Bb5 {[%clk 0:03:00.5]} 4... Bb4 {[%clk 0:02:59.4]} 5. O-O {[%clk 0:03:00.5]}
5... O-O {[%clk 0:02:59.6]} 6. d3 {[%clk 0:03:00.8]} 6... d6 {[%clk 0:02:59.8]}
7. Bg5 {[%clk 0:03:00.6]} 7... Bxc3 {[%clk 0:02:59.1]} 8. bxc3 {[%clk
0:03:00.7]} 8... Qe7 {[%clk 0:02:57.4]} 9. Re1 {[%clk 0:03:00.2]} 9... Nd8
{[%clk 0:02:56.6]} 10. d4 {[%clk 0:02:59.9]} 10... c6 {[%clk 0:02:53.7]} 11. Bf1
{[%clk 0:02:58.5]} 11... h6 {[%clk 0:02:52.8]} 12. Bc1 {[%clk 0:02:40.3]} 12...
Re8 {[%clk 0:02:47.2]} 13. Ba3 {[%clk 0:02:23.4]} 13... Qc7 {[%clk 0:02:33.2]}
14. dxe5 {[%clk 0:02:20.3]} 14... dxe5 {[%clk 0:02:32.9]} 15. Qd6 {[%clk
0:02:13.1]} 15... Qa5 {[%clk 0:01:43.9]} 16. Bb4 {[%clk 0:02:06.3]} 16... Qa4
{[%clk 0:01:43.8]} 17. Bc4 {[%clk 0:01:56.3]} 17... Be6 {[%clk 0:01:24.9]} 18.
Bb3 {[%clk 0:01:54.4]} 18... Qa6 {[%clk 0:01:21.3]} 19. Nxe5 {[%clk 0:01:49.2]}
19... Rc8 {[%clk 0:01:15.2]} 20. Nd3 {[%clk 0:01:40.1]} 20... b6 {[%clk
0:01:12.9]} 21. f4 {[%clk 0:01:19.3]} 21... Nb7 {[%clk 0:01:05]} 22. Qe5 {[%clk
0:01:09.2]} 22... c5 {[%clk 0:00:59.2]} 23. Bxe6 {[%clk 0:00:22.4]} 23... Rxe6
{[%clk 0:00:58.9]} 24. Qf5 {[%clk 0:00:22.9]} 24... cxb4 {[%clk 0:00:54.9]} 25.
Nxb4 {[%clk 0:00:21.8]} 25... Qc4 {[%clk 0:00:54.5]} 26. e5 {[%clk 0:00:22.4]}
26... Nd5 {[%clk 0:00:53.6]} 27. Nxd5 {[%clk 0:00:19.4]} 27... Qxd5 {[%clk
0:00:54.5]} 28. Rad1 {[%clk 0:00:19.5]} 28... Qc6 {[%clk 0:00:49.5]} 29. Qg4
{[%clk 0:00:17.9]} 29... Rg6 {[%clk 0:00:48.2]} 30. Qh3 {[%clk 0:00:17.8]} 30...
Nc5 {[%clk 0:00:37.4]} 31. f5 {[%clk 0:00:18.2]} 31... Rg5 {[%clk 0:00:37.4]}
32. e6 {[%clk 0:00:18.7]} 32... fxe6 {[%clk 0:00:36.4]} 33. fxe6 {[%clk
0:00:19.6]} 33... Re8 {[%clk 0:00:36.5]} 34. e7 {[%clk 0:00:18.8]} 34... Rd5
{[%clk 0:00:34.5]} 35. Rxd5 {[%clk 0:00:14.4]} 35... Qxd5 {[%clk 0:00:35.4]} 36.
Qh4 {[%clk 0:00:11]} 36... Ne6 {[%clk 0:00:35.2]} 37. c4 {[%clk 0:00:09.9]}
37... Qc5+ {[%clk 0:00:34.8]} 38. Kh1 {[%clk 0:00:09.7]} 38... Rxe7 {[%clk
0:00:35.2]} 39. Qg4 {[%clk 0:00:06.2]} 39... Ng5 {[%clk 0:00:34.2]} 40. Rf1
{[%clk 0:00:03.4]} 40... Re4 {[%clk 0:00:29.6]} 41. Qc8+ {[%clk 0:00:02.9]}
41... Qxc8 {[%clk 0:00:29]} 0-1

[Event "Late-Titled-Tuesday-Blitz-May-28-2024"]
[Site "Chess.com"]
[Date "2024.05.28"]
[Round "6"]
[White "stollenmonster"]
[Black "DucksParadise"]
[Result "1-0"]
[WhiteElo "2846"]
[BlackElo "2561"]
[TimeControl "180+1"]
[EndTime "15:07:01 PDT"]
[Termination "stollenmonster won by checkmate"]

1. e4 {[%clk 0:03:00.9]} 1... a6 {[%clk 0:02:51.1]} 2. g3 {[%clk 0:03:00.5]}
2... c6 {[%clk 0:02:49.6]} 3. Bg2 {[%clk 0:02:59.7]} 3... d5 {[%clk 0:02:50.2]}
4. exd5 {[%clk 0:03:00.6]} 4... cxd5 {[%clk 0:02:50.5]} 5. d4 {[%clk 0:03:01.2]}
5... Nc6 {[%clk 0:02:50.2]} 6. c3 {[%clk 0:03:01.4]} 6... Nf6 {[%clk 0:02:44.8]}
7. Nf3 {[%clk 0:03:01.4]} 7... Bf5 {[%clk 0:02:44.1]} 8. O-O {[%clk 0:03:01.8]}
8... e6 {[%clk 0:02:44.1]} 9. Bf4 {[%clk 0:03:01.4]} 9... Be7 {[%clk 0:02:39.8]}
10. Re1 {[%clk 0:03:01.1]} 10... O-O {[%clk 0:02:39.3]} 11. Nbd2 {[%clk
0:03:01.8]} 11... h6 {[%clk 0:02:34.1]} 12. h3 {[%clk 0:03:00.5]} 12... Bh7
{[%clk 0:02:32.1]} 13. Ne5 {[%clk 0:03:00.3]} 13... Nxe5 {[%clk 0:02:29.7]} 14.
Bxe5 {[%clk 0:03:01.2]} 14... Bd6 {[%clk 0:02:17.8]} 15. Nf3 {[%clk 0:02:51.2]}
15... Bxe5 {[%clk 0:02:16.3]} 16. Nxe5 {[%clk 0:02:51.2]} 16... Nd7 {[%clk
0:02:16.2]} 17. Qd2 {[%clk 0:02:43.3]} 17... Nxe5 {[%clk 0:02:14.7]} 18. Rxe5
{[%clk 0:02:44.2]} 18... Rc8 {[%clk 0:02:10.5]} 19. Rae1 {[%clk 0:02:37]} 19...
Qd6 {[%clk 0:02:09.6]} 20. g4 {[%clk 0:02:32.3]} 20... b5 {[%clk 0:02:09.1]} 21.
f4 {[%clk 0:02:29.6]} 21... b4 {[%clk 0:02:09.2]} 22. f5 {[%clk 0:02:20.3]}
22... bxc3 {[%clk 0:02:09.1]} 23. bxc3 {[%clk 0:02:21.2]} 23... Kh8 {[%clk
0:00:57.9]} 24. fxe6 {[%clk 0:02:02.5]} 24... fxe6 {[%clk 0:00:57.6]} 25. Rxe6
{[%clk 0:02:03.4]} 25... Qg3 {[%clk 0:00:50]} 26. R6e3 {[%clk 0:01:49.9]} 26...
Qd6 {[%clk 0:00:26]} 27. Re5 {[%clk 0:01:36.1]} 27... Qa3 {[%clk 0:00:21.6]} 28.
Bxd5 {[%clk 0:01:17.4]} 28... Rxc3 {[%clk 0:00:19.5]} 29. Re8 {[%clk 0:00:56.6]}
29... Rg3+ {[%clk 0:00:18.8]} 30. Bg2 {[%clk 0:00:55.3]} 30... Bg6 {[%clk
0:00:08.6]} 31. Rxf8+ {[%clk 0:00:53.5]} 31... Qxf8 {[%clk 0:00:09.5]} 32. Qf2
{[%clk 0:00:48.6]} 32... Qd6 {[%clk 0:00:07.5]} 33. d5 {[%clk 0:00:30.5]} 33...
Rd3 {[%clk 0:00:05.1]} 34. Re6 {[%clk 0:00:20.5]} 34... Rd1+ {[%clk 0:00:04.1]}
35. Bf1 {[%clk 0:00:21.2]} 35... Qb4 {[%clk 0:00:01.5]} 36. Rxg6 {[%clk
0:00:21]} 36... Qe4 {[%clk 0:00:01.3]} 37. Qf8+ {[%clk 0:00:20.2]} 37... Kh7
{[%clk 0:00:01.3]} 38. Rxg7# {[%clk 0:00:20.3]} 1-0

[Event "Late-Titled-Tuesday-Blitz-May-28-2024"]
[Site "Chess.com"]
[Date "2024.05.28"]
[Round "6"]
[White "GiorgianBarbosa"]
[Black "laskakid"]
[Result "1-0"]
[WhiteElo "2515"]
[BlackElo "2351"]
[TimeControl "180+1"]
[EndTime "15:07:02 PDT"]
[Termination "GiorgianBarbosa won by resignation"]

1. c4 {[%clk 0:03:00]} 1... f5 {[%clk 0:02:59.3]} 2. g3 {[%clk 0:03:00.9]} 2...
Nf6 {[%clk 0:02:59.2]} 3. Bg2 {[%clk 0:03:01.8]} 3... g6 {[%clk 0:02:58.7]} 4.
Nc3 {[%clk 0:03:00.7]} 4... Bg7 {[%clk 0:02:58.8]} 5. e3 {[%clk 0:03:01.6]} 5...
d6 {[%clk 0:02:58.7]} 6. Nge2 {[%clk 0:03:01.6]} 6... O-O {[%clk 0:02:58.9]} 7.
O-O {[%clk 0:03:01.9]} 7... a5 {[%clk 0:02:59]} 8. a3 {[%clk 0:03:01.6]} 8... e5
{[%clk 0:02:59]} 9. d3 {[%clk 0:03:01.6]} 9... c6 {[%clk 0:02:59]} 10. Rb1
{[%clk 0:03:02.1]} 10... Be6 {[%clk 0:02:58]} 11. b4 {[%clk 0:03:01.5]} 11...
axb4 {[%clk 0:02:57.8]} 12. axb4 {[%clk 0:03:02.4]} 12... d5 {[%clk 0:02:51.8]}
13. cxd5 {[%clk 0:03:01.2]} 13... cxd5 {[%clk 0:02:52]} 14. d4 {[%clk
0:03:02.1]} 14... e4 {[%clk 0:02:51.1]} 15. h4 {[%clk 0:02:57.9]} 15... h6
{[%clk 0:02:50.3]} 16. Qb3 {[%clk 0:02:41]} 16... Bf7 {[%clk 0:02:37.1]} 17. Bd2
{[%clk 0:02:40]} 17... Nbd7 {[%clk 0:02:35.6]} 18. Na4 {[%clk 0:02:31.9]} 18...
g5 {[%clk 0:02:29.5]} 19. hxg5 {[%clk 0:02:31.5]} 19... hxg5 {[%clk 0:02:29.7]}
20. Rfc1 {[%clk 0:02:28.7]} 20... Nb6 {[%clk 0:02:05.6]} 21. Nxb6 {[%clk
0:02:22]} 21... Qxb6 {[%clk 0:02:05.8]} 22. Rc5 {[%clk 0:02:20.7]} 22... Rad8
{[%clk 0:01:54.5]} 23. Nc3 {[%clk 0:02:17.8]} 23... Bh6 {[%clk 0:01:43.2]} 24.
b5 {[%clk 0:02:09.4]} 24... Qd6 {[%clk 0:01:30.9]} 25. Ne2 {[%clk 0:01:57.5]}
25... Bh5 {[%clk 0:01:21.5]} 26. Re1 {[%clk 0:01:45]} 26... Bxe2 {[%clk
0:01:05.6]} 27. Rxe2 {[%clk 0:01:44.8]} 27... f4 {[%clk 0:01:06]} 28. exf4
{[%clk 0:01:44.8]} 28... gxf4 {[%clk 0:01:06.4]} 29. gxf4 {[%clk 0:01:38.5]}
29... Bxf4 {[%clk 0:01:03.7]} 30. Bxf4 {[%clk 0:01:13.3]} 30... Qxf4 {[%clk
0:01:03.2]} 31. Qg3+ {[%clk 0:01:14.2]} 31... Qxg3 {[%clk 0:01:03]} 32. fxg3
{[%clk 0:01:15.1]} 32... Rd6 {[%clk 0:00:53.1]} 33. Bh3 {[%clk 0:01:05.7]} 33...
Ra8 {[%clk 0:00:45.7]} 34. Bf5 {[%clk 0:00:53.6]} 34... Ra3 {[%clk 0:00:39.3]}
35. g4 {[%clk 0:00:47.9]} 35... Nxg4 {[%clk 0:00:22.7]} 36. Bxg4 {[%clk
0:00:45.6]} 36... Rd3 {[%clk 0:00:19]} 37. Rxd5 {[%clk 0:00:39.6]} 37... Rxd5
{[%clk 0:00:16.2]} 38. Be6+ {[%clk 0:00:39.4]} 38... Kg7 {[%clk 0:00:15.8]} 39.
Bxd5 {[%clk 0:00:39.5]} 39... Rxd4 {[%clk 0:00:16.2]} 40. Bxb7 {[%clk
0:00:39.8]} 40... Kf6 {[%clk 0:00:12.8]} 41. Rxe4 {[%clk 0:00:33.5]} 41... Rd1+
{[%clk 0:00:10.9]} 42. Kf2 {[%clk 0:00:33.4]} 42... Rb1 {[%clk 0:00:11.1]} 43.
Bc6 {[%clk 0:00:33.5]} 43... Rb2+ {[%clk 0:00:11.3]} 44. Ke3 {[%clk 0:00:33.6]}
44... Rb3+ {[%clk 0:00:11.7]} 45. Kd4 {[%clk 0:00:33.3]} 45... Rb1 {[%clk
0:00:11.2]} 46. Kc5 {[%clk 0:00:33.3]} 46... Rc1+ {[%clk 0:00:10.5]} 47. Kd6
{[%clk 0:00:33.5]} 47... Rd1+ {[%clk 0:00:09.9]} 48. Kc7 {[%clk 0:00:33.5]} 1-0

[Event "Late-Titled-Tuesday-Blitz-May-28-2024"]
[Site "Chess.com"]
[Date "2024.05.28"]
[Round "6"]
[White "janhelmer03"]
[Black "Synctel"]
[Result "1-0"]
[WhiteElo "2386"]
[BlackElo "2071"]
[TimeControl "180+1"]
[EndTime "15:07:03 PDT"]
[Termination "janhelmer03 won by resignation"]

1. Nf3 {[%clk 0:02:59.7]} 1... d5 {[%clk 0:02:55.5]} 2. e3 {[%clk 0:02:58.8]}
2... Nf6 {[%clk 0:02:52.8]} 3. c4 {[%clk 0:02:59.3]} 3... e6 {[%clk 0:02:50]} 4.
Nc3 {[%clk 0:02:58.9]} 4... c6 {[%clk 0:02:45.5]} 5. b3 {[%clk 0:02:56.9]} 5...
Nbd7 {[%clk 0:02:43.5]} 6. Bb2 {[%clk 0:02:56.8]} 6... Bd6 {[%clk 0:02:43.7]} 7.
d4 {[%clk 0:02:56.1]} 7... O-O {[%clk 0:02:39.6]} 8. Bd3 {[%clk 0:02:52.2]} 8...
Re8 {[%clk 0:02:21.7]} 9. O-O {[%clk 0:02:51.4]} 9... dxc4 {[%clk 0:02:17.9]}
10. bxc4 {[%clk 0:02:50.1]} 10... e5 {[%clk 0:02:18.2]} 11. Qc2 {[%clk
0:02:44.6]} 11... Qe7 {[%clk 0:02:08.8]} 12. Ng5 {[%clk 0:01:38.9]} 12... exd4
{[%clk 0:01:07.7]} 13. exd4 {[%clk 0:01:35.9]} 13... h6 {[%clk 0:01:07.4]} 14.
Nf3 {[%clk 0:01:30.4]} 14... Nf8 {[%clk 0:00:54.8]} 15. Rfe1 {[%clk 0:01:29.2]}
15... Qd8 {[%clk 0:00:51.6]} 16. Rxe8 {[%clk 0:01:28.7]} 16... Qxe8 {[%clk
0:00:47.5]} 17. Re1 {[%clk 0:01:29.2]} 17... Qd8 {[%clk 0:00:48.1]} 18. Ne5
{[%clk 0:01:19.6]} 18... Be6 {[%clk 0:00:42.4]} 19. f4 {[%clk 0:01:06.8]} 19...
Bxe5 {[%clk 0:00:30.3]} 20. dxe5 {[%clk 0:01:03.2]} 20... Qd4+ {[%clk
0:00:27.9]} 21. Kh1 {[%clk 0:01:03.6]} 21... Ng4 {[%clk 0:00:25.5]} 22. Ne4
{[%clk 0:01:01]} 22... Qb6 {[%clk 0:00:17.9]} 23. Qe2 {[%clk 0:00:29.6]} 23...
Rd8 {[%clk 0:00:15.8]} 24. Bb1 {[%clk 0:00:15.8]} 24... h5 {[%clk 0:00:13.3]}
25. h3 {[%clk 0:00:15.2]} 25... Nh6 {[%clk 0:00:13.3]} 26. Nd6 {[%clk
0:00:12.1]} 26... g6 {[%clk 0:00:11.8]} 27. Kh2 {[%clk 0:00:07]} 27... h4 {[%clk
0:00:11.3]} 28. Ne4 {[%clk 0:00:03.2]} 28... Nf5 {[%clk 0:00:11.4]} 29. Nf6+
{[%clk 0:00:04.1]} 29... Kg7 {[%clk 0:00:11.4]} 30. Bxf5 {[%clk 0:00:03.4]}
30... Bxf5 {[%clk 0:00:11.4]} 31. e6 {[%clk 0:00:03.9]} 31... Nxe6 {[%clk
0:00:10.5]} 32. Nd5+ {[%clk 0:00:04.5]} 32... f6 {[%clk 0:00:09.8]} 33. Nxb6
{[%clk 0:00:04.9]} 33... axb6 {[%clk 0:00:10.6]} 34. Qf2 {[%clk 0:00:02.1]}
34... Nc5 {[%clk 0:00:08.7]} 35. Qxh4 {[%clk 0:00:02.2]} 35... Nd3 {[%clk
0:00:08.4]} 36. Qxf6+ {[%clk 0:00:02]} 36... Kh6 {[%clk 0:00:07.6]} 37. Qg5+
{[%clk 0:00:02.3]} 37... Kh7 {[%clk 0:00:06.9]} 38. Re7+ {[%clk 0:00:03.2]} 1-0

[Event "Late-Titled-Tuesday-Blitz-May-28-2024"]
[Site "Chess.com"]
[Date "2024.05.28"]
[Round "6"]
[White "sergiochess83"]
[Black "HowTo2Draw"]
[Result "0-1"]
[WhiteElo "2858"]
[BlackElo "2597"]
[TimeControl "180+1"]
[EndTime "15:07:05 PDT"]
[Termination "HowTo2Draw won on time"]

1. d4 {[%clk 0:02:51.1]} 1... d5 {[%clk 0:02:58.4]} 2. c4 {[%clk 0:02:51.7]}
2... e6 {[%clk 0:02:57.9]} 3. Nc3 {[%clk 0:02:50.7]} 3... Nf6 {[%clk 0:02:57.9]}
4. cxd5 {[%clk 0:02:51.3]} 4... exd5 {[%clk 0:02:57.7]} 5. Bg5 {[%clk
0:02:51.9]} 5... Be7 {[%clk 0:02:57.8]} 6. e3 {[%clk 0:02:51.8]} 6... O-O {[%clk
0:02:57.5]} 7. Bd3 {[%clk 0:02:52.3]} 7... h6 {[%clk 0:02:57.9]} 8. Bh4 {[%clk
0:02:51.7]} 8... c6 {[%clk 0:02:57]} 9. Qc2 {[%clk 0:02:48.4]} 9... Re8 {[%clk
0:02:52.2]} 10. Nge2 {[%clk 0:02:48.4]} 10... Nbd7 {[%clk 0:02:50.4]} 11. Bg3
{[%clk 0:02:46.2]} 11... Nb6 {[%clk 0:02:31.1]} 12. O-O-O {[%clk 0:02:16.9]}
12... Bd6 {[%clk 0:02:22.7]} 13. Bh4 {[%clk 0:02:16.2]} 13... Be7 {[%clk
0:02:16.4]} 14. f3 {[%clk 0:02:16.1]} 14... Nc4 {[%clk 0:02:03.3]} 15. Bxc4
{[%clk 0:02:12.1]} 15... dxc4 {[%clk 0:02:04.2]} 16. e4 {[%clk 0:02:11.1]} 16...
b5 {[%clk 0:01:54.6]} 17. Kb1 {[%clk 0:01:55.1]} 17... Qa5 {[%clk 0:01:39]} 18.
a3 {[%clk 0:01:22.1]} 18... b4 {[%clk 0:01:25.6]} 19. axb4 {[%clk 0:01:21.3]}
19... Qxb4 {[%clk 0:01:22.7]} 20. d5 {[%clk 0:01:12.9]} 20... a5 {[%clk
0:00:54.5]} 21. Nd4 {[%clk 0:01:05.1]} 21... Nxd5 {[%clk 0:00:36.5]} 22. Nxd5
{[%clk 0:00:34.3]} 22... cxd5 {[%clk 0:00:35.7]} 23. Nc6 {[%clk 0:00:34.5]}
23... Qb7 {[%clk 0:00:28.3]} 24. Nxe7+ {[%clk 0:00:34.1]} 24... Rxe7 {[%clk
0:00:28.6]} 25. Bxe7 {[%clk 0:00:34.8]} 25... Qxe7 {[%clk 0:00:28.9]} 26. exd5
{[%clk 0:00:20.5]} 26... Qf6 {[%clk 0:00:25.6]} 27. Qc3 {[%clk 0:00:15.9]} 27...
Bf5+ {[%clk 0:00:25.7]} 28. Ka2 {[%clk 0:00:13.1]} 28... Qa6 {[%clk 0:00:24.4]}
29. Rd4 {[%clk 0:00:10.1]} 29... Bd3 {[%clk 0:00:24]} 30. Rd1 {[%clk 0:00:09.8]}
30... a4 {[%clk 0:00:23.9]} 31. d6 {[%clk 0:00:08.3]} 31... a3 {[%clk
0:00:23.1]} 32. bxa3 {[%clk 0:00:08.2]} 32... Qb6 {[%clk 0:00:20.7]} 33. d7
{[%clk 0:00:04]} 33... Rb8 {[%clk 0:00:20]} 34. d8=Q+ {[%clk 0:00:03.1]} 34...
Rxd8 {[%clk 0:00:19.6]} 35. Rxd8+ {[%clk 0:00:03.5]} 35... Qxd8 {[%clk 0:00:20]}
36. Rd2 {[%clk 0:00:03.1]} 36... Qb6 {[%clk 0:00:19.9]} 37. Rb2 {[%clk
0:00:03.3]} 37... Qg1 {[%clk 0:00:18.7]} 38. h3 {[%clk 0:00:03]} 38... Qd1
{[%clk 0:00:18]} 39. Qb4 {[%clk 0:00:02.3]} 39... Bc2 {[%clk 0:00:16.4]} 40.
Qxc4 {[%clk 0:00:01.9]} 40... Bf5 {[%clk 0:00:15.9]} 0-1